Cogmind - Beta 15 @@@ ROGUE MODE // 2025.08.30 @ 21:48:53 Player: xgames Result: Self-destructed Performance ------------- Evolutions (4) 2000 Regions Visited (8) 1600 Robots Destroyed (61) 305 Value Destroyed (1659) 1659 Prototype IDs (27) 540 Alien Tech Used (0) 0 Bonus (848) 848 TOTAL SCORE: 6952 Bonus ------- High Alert Combat Kills 48 Entered DSFs 500 Aligned with FarCom 300 Cogmind --------- Core Integrity 675/850 Matter 208/300 Energy 84/100 System Corruption 4% Temperature Cool (0) Movement Core (650) Ox12 Location -6/DSF Parts ------- > --- POWER (2) -------- (None) > --- PROPULSION (5) --- (None) > --- UTILITY (5) ------ Large Storage Unit Terrain Scan Processor Targeting Computer Improved Particle Charger > --- WEAPON (3) ------- Heavy Particle Gun Gauss Rifle Flak Cannon > --- INVENTORY (15) --- Improved Heat Sink Armor Integrity Analyzer Improved Particle Charger Improved Particle Charger Improved Medium Armor Plating Improved Medium Armor Plating PSU Rigger Assault Cannon Peak State ------------ > --- POWER ------------ Light Fission Core Micro Fission Core > --- PROPULSION ------- Light Treads Light Treads Armored Treads Improved Carbon-fiber Leg Cesium-ion Thruster > --- UTILITY ---------- Large Storage Unit Terrain Scan Processor Targeting Computer Improved Particle Charger PSU Rigger > --- WEAPON ----------- EM Pulse Cannon EM Pulse Cannon Flak Cannon > --- INVENTORY -------- Light Nuclear Core Improved Heat Sink Armor Integrity Analyzer Improved Particle Charger Improved Particle Charger Light Armor Plating Improved Medium Armor Plating Improved Medium Armor Plating Layered Light Armor Plating Heavy Particle Gun Gatling Laser Gauss Rifle Assault Cannon Grenade Launcher [Rating: 53] Favorites ----------- Power Heavy Ion Engine Engine Heavy Ion Engine Power Core Light Nuclear Core Propulsion Armored Treads Treads Armored Treads Leg Carbon-fiber Leg Wheel Compact Wheel Flight Unit Cesium-ion Thruster Utility Improved Terrain Scanner Device Improved Terrain Scanner Storage Medium Storage Unit Processor Targeting Computer Protection Hardened Light Armor Plating Weapon Heavy Particle Gun Energy Gun Heavy Particle Gun Energy Cannon EM Pulse Cannon Ballistic Gun Light Assault Rifle Ballistic Cannon Flak Cannon Launcher Grenade Launcher Build | -11 -10 -10 -10 -9 -8 -7 -6 -6 ------- Run | Yrd Mat Min Exi Min Mat Fac Fac DSF Slots Evolved 8 | . . . . . 4 2 2 . Power 1 | . . . . . . . 1 . Propulsion 3 | . . . . . 2 1 . . Utility 3 | . . . . . 2 1 . . Weapon 1 | . . . . . . . 1 . Parts Attached 58 | 9 . . 2 2 30 8 3 4 Power 9 | 2 . . . . 3 1 1 2 Engine 4 | 2 . . . . 2 . . . Core 5 | . . . . . 1 1 1 2 Reactor . | . . . . . . . . . Propulsion 17 | 2 . . 1 . 12 2 . . Treads 7 | 1 . . . . 4 2 . . Leg 3 | . . . . . 3 . . . Wheel 2 | 1 . . 1 . . . . . Hover . | . . . . . . . . . Flight 5 | . . . . . 5 . . . Utility 16 | 2 . . 1 . 7 3 2 1 Device 6 | 1 . . . . 2 2 1 . Storage 3 | 1 . . 1 . 1 . . . Processor 2 | . . . . . 2 . . . Hackware . | . . . . . . . . . Protection 5 | . . . . . 2 1 1 1 Artifact . | . . . . . . . . . Weapon 16 | 3 . . . 2 8 2 . 1 Energy Gun 6 | 2 . . . . 3 . . 1 Energy Cannon 2 | . . . . . . 2 . . Ballistic Gun 2 | 1 . . . . 1 . . . Ballistic Cannon 2 | . . . . . 2 . . . Launcher 4 | . . . . 2 2 . . . Special Weapon . | . . . . . . . . . Impact Weapon . | . . . . . . . . . Slashing Weapon . | . . . . . . . . . Piercing Weapon . | . . . . . . . . . Special Melee Weapon . | . . . . . . . . . Unidentified Prototypes 2 | . . . . . 2 . . . Parts Lost 27 | . . . . . 13 2 . 12 Power 4 | . . . . . 2 . . 2 Propulsion 9 | . . . . . 4 . . 5 Utility 7 | . . . . . 3 2 . 2 Weapon 7 | . . . . . 4 . . 3 Highest Loss Streak 10 | . . . . . 5 2 . 10 To Critical Strikes 1 | . . . . . 1 . . . Average Backups 9 | 3 5 7 7 8 9 14 11 13 Power . | . . . . . . 1 . . Propulsion 1 | 1 2 2 2 2 2 . 1 . Utility 3 | . 1 2 2 3 3 7 5 7 Weapon 3 | 1 1 3 3 3 3 5 4 4 Tool/Special . | . . . . . . . . . Unused Backups 13 | . . . 1 1 6 1 . 4 Power . | . . . . . . . . . Propulsion 1 | . . . . . 1 . . . Utility 8 | . . . 1 . 3 . . 4 Weapon 3 | . . . . 1 1 1 . . Tool/Special 1 | . . . . . 1 . . . Average Slot Usage (%) 96 | . 100 100 100 100 94 99 96 94 Engine 7 | . 14 14 14 14 6 4 . . Core 1 | . . . . . . 2 13 12 Treads 12 | . 14 14 4 . 14 19 20 17 Leg 7 | . . . . . 12 7 6 5 Wheel 7 | . 14 14 23 28 . . . . Flight 4 | . . . . . 5 10 6 5 Device 11 | . 14 14 14 14 12 6 1 6 Storage 9 | . 14 14 14 14 9 7 6 6 Processor 6 | . . . . . 7 15 13 13 Protection 4 | . . . . . 6 6 9 5 Energy Gun 6 | . 14 14 14 . 8 . . 1 Energy Cannon 1 | . . . . . . 5 13 11 Ballistic Gun 6 | . 14 14 14 8 4 3 . . Ballistic Cannon 2 | . . . . . 2 5 4 2 Launcher 3 | . . . . 18 2 . . 2 Peak Build Rating 53 | 9 9 9 10 11 38 35 45 53 Average Rating 25 | 4 9 9 9 10 31 34 40 45 On Entrance 17 | . 9 9 9 10 11 29 33 45 Naked Turns . | . . . . . . . . . Heaviest Build 58 | 14 14 14 19 23 41 45 56 58 Greatest Support 60 | 20 16 16 26 26 42 60 60 60 Greatest Overweight (x) 2 | . . . . . 2 1 . 2 Average Overweight (x) . | . . . . . . . . . Largest Inventory Capacity 15 | 8 8 8 10 10 15 15 15 15 Average Capacity 11 | 7 8 8 8 10 10 15 15 15 Most Carried 15 | 6 7 7 8 10 14 15 14 15 Average Carried 9 | 3 5 7 7 8 9 14 11 13 Final Capacity 15 | 8 8 8 10 10 15 15 15 15 Final Carried 14 | 4 7 7 8 10 14 13 14 8 Class Distribution -------------------- 29% | Scavenger-Mutant 28% | Mutant 25% | Skirmisher 10% | Scavenger-Skirmisher 4% | Scavenger-Gunner Dominant Class ---------------- Mutant | -10/Materials Mutant | -10/Mines Mutant | -10/Exiles Skirmisher | -9/Mines Skirmisher | -8/Materials Scavenger-Mutant | -7/Factory Scavenger-Tank | -6/Factory Scavenger-Gunner | -6/DSF Resources | -11 -10 -10 -10 -9 -8 -7 -6 -6 ----------- Run | Yrd Mat Min Exi Min Mat Fac Fac DSF Matter Collected 1470 | 252 . . . 33 850 224 . 111 Remotely . | . . . . . . . . . Salvage Created 1680 | 12 . . . 41 1103 413 . 111 Parts 124 | 4 . . . 9 86 14 . 11 Haulers Intercepted 1 | . . . . . 1 . . . Recyclers Shooed 1 | . . . . . 1 . . . Parts Field Recycled . | . . . . . . . . . Retrieved Matter . | . . . . . . . . . Parts Self-Destructed . | . . . . . . . . . Prevented . | . . . . . . . . . Kills | -11 -10 -10 -10 -9 -8 -7 -6 -6 ------- Run | Yrd Mat Min Exi Min Mat Fac Fac DSF Combat Hostiles Destroyed 48 | . . . . 8 33 5 . 2 Guns 18 | . . . . . 18 . . . Cannons 7 | . . . . . 1 4 . 2 AOE 21 | . . . . 8 12 1 . . Classes Destroyed 11 | 1 . . . 1 8 1 . . Worker 2 | . . . . . 2 . . . Builder 4 | . . . . . 4 . . . Tunneler 1 | 1 . . . . . . . . Hauler 1 | . . . . . 1 . . . Recycler 4 | . . . . . 2 2 . . Watcher 1 | . . . . . . 1 . . Swarmer 24 | . . . . 8 16 . . . Grunt 14 | . . . . . 9 5 . . Sentry 5 | . . . . . 5 . . . Specialist 4 | . . . . . 2 . . 2 Hunter 1 | . . . . . 1 . . . Best Kill Streak 9 | 1 . . . 8 9 6 . 2 Combat Bots Only 8 | . . . . 8 6 4 . 2 Max Kills in Single Turn 4 | 1 . . . 3 4 2 . 1 Gunslinging . | . . . . . . . . . Exploded 3 | . . . . 3 3 1 . . Melee . | . . . . . . . . . Uniques/NPCs Destroyed . | . . . . . . . . . Combat | -11 -10 -10 -10 -9 -8 -7 -6 -6 -------- Run | Yrd Mat Min Exi Min Mat Fac Fac DSF Hostile Shots Fired 395 | . . . . 26 218 34 . 117 Missed 96 | . . . . 9 48 12 . 27 Hits 299 | . . . . 17 170 22 . 90 Projectile 299 | . . . . 17 170 22 . 90 Critical Strikes 10 | . . . . . 6 1 . 3 Part Disruptions 4 | . . . . . . . . 4 Damage Taken 4641 | 4 . . . 172 2295 565 . 1605 Core 618 | . . . . 56 387 . . 175 Absorbed by Shields . | . . . . . . . . . Regen/Repaired (Parts) 298 | . . . . . . 298 . . Core Remaining (%) 76 | 100 . . . 77 29 100 . . Volleys Fired 133 | 6 . . . 8 89 19 . 11 Largest 3 | 2 . . . 2 2 2 . 3 Hottest 206 | 60 . . . 60 110 126 . 206 Shots Fired 225 | 7 . . . 15 153 30 . 20 Gun 161 | 7 . . . 9 132 6 . 7 Cannon 40 | . . . . . 4 24 . 12 Launcher 24 | . . . . 6 17 . . 1 Special . | . . . . . . . . . Kinetic 66 | 6 . . . 8 31 15 . 6 Thermal 108 | . . . . . 103 . . 5 Explosive 24 | . . . . 6 17 . . 1 Electromagnetic 27 | 1 . . . 1 2 15 . 8 Robot Hit Streak 8 | 3 . . . 4 7 6 . 8 Robot Miss Streak 6 | 1 . . . 6 5 4 . 2 Penetration Max . | . . . . . . . . . Secondary Targets 2 | . . . . . 2 . . . Max Gunslinging Chain 1 | . . . . . 1 . . . Shots Hit Robots 129 | 5 . . . 5 81 24 . 14 Core Hits 107 | 2 . . . 8 66 22 . 9 Critical Kills 1 | . . . . . 1 . . . Critical Parts Destroyed . | . . . . . . . . . Critical Strikes 5 | . . . . . 5 . . . Burn 4 | . . . . . 4 . . . Destroy 1 | . . . . . 1 . . . Melee Attacks . | . . . . . . . . . Impact . | . . . . . . . . . Slashing . | . . . . . . . . . Piercing . | . . . . . . . . . Sneak Attacks . | . . . . . . . . . Combat Hostiles . | . . . . . . . . . Follow-up Attacks . | . . . . . . . . . Damage Inflicted 4131 | 47 . . . 497 2436 770 . 381 Guns 1567 | 39 . . . 32 1312 93 . 91 Cannons 586 | . . . . . 46 312 . 228 Explosions 1873 | . . . . 424 1030 365 . 54 Melee . | . . . . . . . . . Ramming 105 | 8 . . . 41 48 . . 8 Kinetic 605 | 39 . . . 22 267 208 . 69 Thermal 1157 | . . . . . 1066 . . 91 Explosive 1873 | . . . . 424 1030 365 . 54 Electromagnetic 391 | . . . . 10 25 197 . 159 Impact . | . . . . . . . . . Slashing . | . . . . . . . . . Piercing . | . . . . . . . . . Highest Corruption 8 | . . . . . 8 1 . 4 Average Corruption 7 | . . . . . 7 1 . 3 Corruption Purged . | . . . . . . . . . Corruption Blocked . | . . . . . . . . . Effects 64 | . . . . . 61 . . 3 Message Errors 12 | . . . . . 11 . . 1 Matter Fused 12 | . . . . . 11 . . 1 Heat Flow Errors 9 | . . . . . 9 . . . Energy Discharges 8 | . . . . . 8 . . . Parts Rejected 1 | . . . . . 1 . . . Parts Fused 1 | . . . . . 1 . . . Data Loss (minor) 6 | . . . . . 6 . . . Data Loss (major) 4 | . . . . . 3 . . 1 Misfires 7 | . . . . . 7 . . . Alerts 1 | . . . . . 1 . . . Weapon Failures 3 | . . . . . 3 . . . Overload Shots . | . . . . . . . . . Overflow Damage 59 | . . . . 11 48 . . . Projectiles 4 | . . . . . 4 . . . Explosions 55 | . . . . 11 44 . . . Melee . | . . . . . . . . . Knockbacks 6 | . . . . . . 3 . 3 Impact 1 | . . . . . . . . 1 Kinetic 5 | . . . . . . 3 . 2 Secondary . | . . . . . . . . . Self-Inflicted Damage 511 | 4 . . . 33 241 233 . . Shots 12 | . . . . 1 8 3 . . Rammed 8 | 1 . . . 4 . . . 3 Targets Rammed 25 | 1 . . . 4 17 . . 3 Kicked 17 | . . . . . 17 . . . Crushed . | . . . . . . . . . Highest Temperature 477 | 10 . . . 20 477 18 . 149 Average Temperature 108 | 7 . . . 11 116 14 . 66 Received Heat Transfer 747 | . . . . . 585 117 . 45 Effects 6 | . . . . . 6 . . . Shutdowns 1 | . . . . . 1 . . . Energy Bleed 1 | . . . . . 1 . . . Interference 1 | . . . . . 1 . . . Matter Decay 1 | . . . . . 1 . . . Short Circuit 1 | . . . . . 1 . . . Damage (minor) 1 | . . . . . 1 . . . Siege Activations . | . . . . . . . . . Martial Activations . | . . . . . . . . . Shielding Activations . | . . . . . . . . . Robots Disrupted . | . . . . . . . . . Combat Hostiles . | . . . . . . . . . Robots Corrupted . | . . . . . . . . . Combat Hostiles . | . . . . . . . . . Parts Fried . | . . . . . . . . . Impact Corruptions . | . . . . . . . . . Robots Melted 2 | . . . . . 2 . . . Combat Hostiles 2 | . . . . . 2 . . . Parts Melted 8 | . . . . . 8 . . . Heat Transferred 2634 | . . . . . 2472 . . 162 Parts Sabotaged . | . . . . . . . . . Parts Stolen . | . . . . . . . . . Parts Stripped . | . . . . . . . . . Power Chain Reactions . | . . . . . . . . . Alert | -11 -10 -10 -10 -9 -8 -7 -6 -6 ------- Run | Yrd Mat Min Exi Min Mat Fac Fac DSF Maximum Alert Level 2 | . . . . . 2 1 . . Low Security (%) 74 | 100 100 100 . 100 61 76 100 100 Level 1 11 | . . . . . 14 23 . . Level 2 13 | . . . . . 24 . . . Level 3 . | . . . . . . . . . Level 4 . | . . . . . . . . . Level 5 . | . . . . . . . . . High Security . | . . . . . . . . . Max Security . | . . . . . . . . . Peak Influence 437 | . . . . 197 437 254 86 121 Initial 182 | . . . . . . 182 86 39 Average 148 | . . . . 95 186 161 71 78 Influence Increases 1669 | 5 . . . 207 1076 284 . 97 Destroy 0b10 Robot/C 960 | . . . . 160 660 100 . 40 Destroy 0b10 Robot/NC 65 | 5 . . . . 45 15 . . Destroy Leader 184 | . . . . 20 142 12 . 10 Successful Hack 10 | . . . . . 5 5 . . Disable Machine 195 | . . . . . 105 90 . . Destroy Structure 165 | . . . . 27 74 62 . 2 Lose Combat Pursuer 90 | . . . . . 45 . . 45 Influence Decreases 1653 | 5 . . . 207 673 511 120 137 Entered New Map 328 | . . . . . . 221 90 17 Time Decay 1055 | 5 . . . 207 543 270 30 . Lost Part 270 | . . . . . 130 20 . 120 Squads Dispatched 8 | . . . . . 4 1 . 3 Investigation . | . . . . . . . . . Extermination 1 | . . . . . . 1 . . Reinforcement 7 | . . . . . 4 . . 3 Assault . | . . . . . . . . . Garrison . | . . . . . . . . . Intercept . | . . . . . . . . . Searches Triggered . | . . . . . . . . . Construction Impeded . | . . . . . . . . . Haulers Reinforced . | . . . . . . . . . Active Scanning Responses . | . . . . . . . . . Cargo Convoy Interrupts . | . . . . . . . . . Stealth | -11 -10 -10 -10 -9 -8 -7 -6 -6 --------- Run | Yrd Mat Min Exi Min Mat Fac Fac DSF Distress Signals 4 | . . . . . 4 . . . Communications Jammed . | . . . . . . . . . Distress Signals . | . . . . . . . . . Times Spotted 77 | . . . . 8 52 9 . 8 Peak Tracking Total 8 | . . . . 4 8 4 . 4 Tactical Retreats 5 | . . . . . 2 . . 3 Traps | -11 -10 -10 -10 -9 -8 -7 -6 -6 ------- Run | Yrd Mat Min Exi Min Mat Fac Fac DSF Traps Triggered 5 | . . . . . 5 . . . Indirectly . | . . . . . . . . . Trap Hack Attempts . | . . . . . . . . . Triggered . | . . . . . . . . . Disarmed . | . . . . . . . . . Reprogrammed . | . . . . . . . . . Reused . | . . . . . . . . . Traps Extracted . | . . . . . . . . . Installed . | . . . . . . . . . Triggered . | . . . . . . . . . Objects Rigged 2 | . . . . . . . . 2 Exploded 2 | . . . . . . . . 2 Machines | -11 -10 -10 -10 -9 -8 -7 -6 -6 ---------- Run | Yrd Mat Min Exi Min Mat Fac Fac DSF Machines Disabled 13 | . . . . . 7 6 . . Max in Single Turn 2 | . . . . . 1 2 . . Machines Repaired . | . . . . . . . . . Machines Dismantled . | . . . . . . . . . Machines Sabotaged . | . . . . . . . . . Overloaded Fab Kills . | . . . . . . . . . Hacking | -11 -10 -10 -10 -9 -8 -7 -6 -6 --------- Run | Yrd Mat Min Exi Min Mat Fac Fac DSF Machines Accessed 13 | . 2 . 5 . 3 2 1 . Terminals 7 | . 2 . . . 3 1 1 . Fabricators . | . . . . . . . . . Repair Stations 1 | . . . . . . 1 . . Recycling Units . | . . . . . . . . . Scanalyzers . | . . . . . . . . . Garrison Access . | . . . . . . . . . Total Hacks 65 | . 4 . 50 . 6 4 1 . Successful 59 | . 2 . 50 . 3 3 1 . Failed 5 | . 1 . . . 3 1 . . Catastrophic 1 | . . . . . 1 . . . Database Lockouts 1 | . 1 . . . . . . . Manual 9 | . 5 . 1 . 3 . . . Terminals 13 | . 4 . . . 6 2 1 . Fabricators . | . . . . . . . . . Repair Stations 2 | . . . . . . 2 . . Recycling Units . | . . . . . . . . . Scanalyzers . | . . . . . . . . . Garrison Access . | . . . . . . . . . Terminal Hacks 57 | . 2 . 50 . 3 1 1 . Record 51 | . 2 . 49 . . . . . Prototype ID Bank 1 | . . . . . 1 . . . Open DSF 2 | . . . . . . 1 1 . Emergency Access Points 1 | . . . . . 1 . . . Unreport Threat 1 | . . . . . 1 . . . Proto ID Catalog 1 | . . . 1 . . . . . Fabricator Hacks . | . . . . . . . . . Repair Station Hacks 2 | . . . . . . 2 . . Scan Component 1 | . . . . . . 1 . . Repair 1 | . . . . . . 1 . . Recycling Unit Hacks . | . . . . . . . . . Scanalyzer . | . . . . . . . . . Garrison Access Hacks . | . . . . . . . . . Unauthorized Hacks . | . . . . . . . . . Terminals . | . . . . . . . . . Fabricators . | . . . . . . . . . Repair Stations . | . . . . . . . . . Recycling Units . | . . . . . . . . . Scanalyzers . | . . . . . . . . . Garrison Access . | . . . . . . . . . Data Cores Recovered . | . . . . . . . . . Used . | . . . . . . . . . Hacking Detections 4 | . . . . . 2 2 . . Full Trace Events . | . . . . . . . . . Feedback Events . | . . . . . . . . . Feedback Blocked . | . . . . . . . . . Robot Schematics Acquired . | . . . . . . . . . Robots Built . | . . . . . . . . . Authchips . | . . . . . . . . . Time . | . . . . . . . . . Total Robot Build Rating . | . . . . . . . . . Part Schematics Acquired . | . . . . . . . . . Parts Built . | . . . . . . . . . Authchips . | . . . . . . . . . Time . | . . . . . . . . . Total Part Build Rating . | . . . . . . . . . Parts Repaired 1 | . . . . . . 1 . . Time 38 | . . . . . . 38 . . Parts Recycled . | . . . . . . . . . Recycled Matter . | . . . . . . . . . Retrieved Matter . | . . . . . . . . . Retrieved Components . | . . . . . . . . . Parts Scanalyzed . | . . . . . . . . . Part Schematics Acquired . | . . . . . . . . . Parts Damaged . | . . . . . . . . . Bothacking | -11 -10 -10 -10 -9 -8 -7 -6 -6 ------------ Run | Yrd Mat Min Exi Min Mat Fac Fac DSF Used RIF Installer . | . . . . . . . . . Robots Hacked . | . . . . . . . . . Non-combat . | . . . . . . . . . Combat . | . . . . . . . . . Robot Hacks Applied . | . . . . . . . . . Relay Couplers Released . | . . . . . . . . . Fabnet Peak Effective % . | . . . . . . . . . Robots Rewired . | . . . . . . . . . Allies Hacked . | . . . . . . . . . Hacks Repelled . | . . . . . . . . . Allies | -11 -10 -10 -10 -9 -8 -7 -6 -6 -------- Run | Yrd Mat Min Exi Min Mat Fac Fac DSF Total Allies . | . . . . . . . . . Largest Group . | . . . . . . . . . Highest-Rated Group . | . . . . . . . . . Highest-Rated Ally . | . . . . . . . . . Total Orders . | . . . . . . . . . Ally Attacks . | . . . . . . . . . Total Damage . | . . . . . . . . . Kills . | . . . . . . . . . Allies Corrupted . | . . . . . . . . . Allies Melted . | . . . . . . . . . Intel | -11 -10 -10 -10 -9 -8 -7 -6 -6 ------- Run | Yrd Mat Min Exi Min Mat Fac Fac DSF Active Infowar (turns) 2559 | 6 156 62 656 440 1239 . . . Terrain 2559 | 6 156 62 656 440 1239 . . . Robot Analysis Total . | . . . . . . . . . Derelict Logs Recovered . | . . . . . . . . . Drone Launches . | . . . . . . . . . Drone Recoveries . | . . . . . . . . . Exploration | -11 -10 -10 -10 -9 -8 -7 -6 -6 ------------- Run | Yrd Mat Min Exi Min Mat Fac Fac DSF Turns Passed 4699 | 127 156 62 656 440 2332 593 76 257 Spaces Moved 2790 | 97 152 63 699 452 924 260 41 102 Core 13 | 13 . . . . . . . . Treads 570 | 3 . . . . 164 260 41 102 Legs 750 | . . . . . 750 . . . Wheels 1447 | 81 152 63 699 452 . . . . Hover . | . . . . . . . . . Flight 10 | . . . . . 10 . . . Fastest Speed 50 | 50 100 100 90 90 109 163 163 163 Average Speed 132 | 95 100 100 92 90 174 183 163 183 Slowest Speed 330 | 160 100 100 100 90 260 245 163 330 Overloaded Moves . | . . . . . . . . . Propulsion Burnouts . | . . . . . . . . . Robots Hopped . | . . . . . . . . . Potential Cave-ins . | . . . . . . . . . Cave-ins Triggered . | . . . . . . . . . Exploration Rate (%) 33 | 4 17 21 89 67 57 6 1 42 Regions Visited 8 Branch Regions 3 Pre-discovered Areas 1 | . . . 1 . . . . . Known Exits Taken 1 | . . . . . . . 1 . Unknown Exits Taken 7 | 1 1 1 1 1 1 1 . . Scrap Searched 1 | . . . . 1 . . . . Spaces Dug . | . . . . . . . . . Terrain Destroyed 210 | . . . . 46 92 70 . 2 Melee . | . . . . . . . . . Projectile . | . . . . . . . . . AOE 210 | . . . . 46 92 70 . 2 Terrain Rammed . | . . . . . . . . . Walls Destroyed . | . . . . . . . . . Machines Disabled . | . . . . . . . . . Actions | -11 -10 -10 -10 -9 -8 -7 -6 -6 --------- Run | Yrd Mat Min Exi Min Mat Fac Fac DSF Total 3549 | 124 156 62 705 471 1490 347 50 144 Wait 393 | . . . . . 340 47 2 4 Move 2782 | 96 151 62 698 451 923 259 40 102 Hop . | . . . . . . . . . Pick Up 79 | 11 4 . 2 4 44 7 4 3 Fast Attach . | . . . . . . . . . Attach 43 | 7 . . . . 23 5 3 5 Detach . | . . . . . . . . . Swap 56 | 3 . . 2 2 32 6 1 10 Drop 34 | . 1 . 1 2 22 4 . 4 Fire 133 | 6 . . . 8 89 19 . 11 Melee . | . . . . . . . . . Ram 5 | 1 . . . 4 . . . . Kick 17 | . . . . . 17 . . . Crush 3 | . . . . . . . . 3 Escape Stasis . | . . . . . . . . . Rewire 2 | . . . 2 . . . . . Trap 2 | . . . . . . . . 2 Miscellaneous . | . . . . . . . . . Route ------- -11/Scrapyard -10/Materials -10/Mines -10/Exiles (discovered 2 exits: [*Min x2]) -9/Mines (discovered 2 exits: *Mat x2) -8/Materials -7/Factory -6/Factory -6/DSF History --------- Turn | Location | Event 6 | -11/Scrapyard | Discovered new exit (range 15) 128 | -11/Scrapyard | Entered Materials 128 | -10/Materials | Discovered new exit (range 8) 135 | -10/Materials | Central database locked down 208 | -10/Materials | Met 8R-AWN 284 | -10/Materials | Entered Mines 285 | -10/Mines | Followed 8R-AWN into the Mines 304 | -10/Mines | Build established: Mutant 342 | -10/Mines | Discovered new exit (range 5) 346 | -10/Mines | Entered Exiles 359 | -10/Exiles | Discovered new exit (range 15) 374 | -10/Exiles | Welcomed by 8R-AWN 388 | -10/Exiles | Met EX-HEX 436 | -10/Exiles | Met EX-BIN 535 | -10/Exiles | Met EX-DEC 550 | -10/Exiles | Learned location of Zion (-6) 601 | -10/Exiles | Visited The Gauntlet 728 | -10/Exiles | Discovered new exit (range 10) 791 | -10/Exiles | Aligned with FarCom system 792 | -10/Exiles | Given EX-Vault access code 865 | -10/Exiles | Opened EX-Vault 877 | -10/Exiles | Found PSU Rigger 894 | -10/Exiles | Warned to stay clear of 0b10 Research branches 1002 | -10/Exiles | Left Exiles lab with PSU Rigger 1002 | -10/Exiles | Entered Mines 1046 | -9/Mines | Destroyed 8 combat bots 1064 | -9/Mines | Discovered new exit (range 16) 1101 | -9/Mines | Discovered new exit (range 8) 1254 | -9/Mines | Received a Rocket Launcher from a helpful Derelict 1310 | -9/Mines | Build established: Skirmisher 1442 | -9/Mines | Entered Materials 1442 | -8/Materials | Evolved 4 slots: Propulsion x2, Utility x2 1514 | -8/Materials | Lost 5 parts (1p1n3w) 2981 | -8/Materials | Build established: Mutant 3023 | -8/Materials | Core integrity fell below 50% 3070 | -8/Materials | Lost 3 parts (2n1w) 3331 | -8/Materials | Build established: Scavenger-Mutant 3378 | -8/Materials | Discovered new exit (range 16) 3774 | -8/Materials | Entered Factory 3774 | -7/Factory | Evolved 2 slots: Propulsion x1, Utility x1 3790 | -7/Factory | Identified exit to DSF 4000 | -7/Factory | Repaired Arm. Treads 4172 | -7/Factory | Discovered new exit (range 12) 4367 | -7/Factory | Entered another Factory area 4367 | -6/Factory | Evolved 2 slots: Power x1, Weapon x1 4440 | -6/Factory | Identified exit to DSF 4443 | -6/Factory | Entered DSF 4485 | -6/DSF | Additional patrols routed to DSF 4700 | -6/DSF | Self-destructed Last Messages --------------- 04680_ Slug penetrates Wall. 04682_ Penetrated by Slug. 04683_ H-66 Slayer knocked back. 04683_ EM Pulse Cannon destroyed. 04683_ Penetrated by Slug. 04683_ Grenade Launcher destroyed. 04683_ Lyr. Light Armor Plating destroyed. 04686_ Penetrated by Slug. 04688_ Lgt. Fission Core destroyed. 04689_ Slug penetrates Wall. 04689_ Penetrated by Slug. 04690_ Lgt. Armor Plating destroyed. 04692_ Slug penetrates Wall. 04692_ Penetrated by Slug. 04694_ Mic. Fission Core destroyed. 04695_ System corrupted: Substantial component data lost. 04695_ Penetrated by Slug. 04695_ Cesium-ion Thruster destroyed. 04698_ Penetrated by Slug. 04700_ Arm. Treads destroyed. Map ----- +----------------------------------------------------+ | ????????#####!###???????##"####??????? | | ????????# !^^^[[#########"""""#??????? | | ?#]]# # !!^[%#!!!#!!##"""""#??????? | | ! ! ""##"#???? | | """""#???? | | ##]]# ### ###!!!#!!## ""###????? | | ????# ????# #?#!!!#!!### ###??????? | | ????????? ?########## ##???????? | | ????????# ????????#!! x!#???????? | | ????????# ????????#!![ !#???????? | | ????????### #????????###[=##???????? | | ??????????= !????????#!!*!!#???????? | | ?????????== !????????#!! ! ##??????? | | ?????????== !????????#!!!=! #??????? | | ????????### #?########"" [;##??????? | | ??????????# ??#!!!# "# !!!#??????? | | ?????????? ##!!!; ## !!#??????? | | ?????????? x!!##?????? | | ?????????? ^ !!;#?????? | | ?????????? % % !!##?????? | | ??????????? # !!#!H!;# #??????? | | ??????????? ### !!#!!!#; h #??????? | | ????????????????###?##%; ; ;##??????? | | ?????????????????????###]] #???????? | | ???????????????????????#]] #???????? | | ???????????????????????#]@% #???????? | | ???????????????????????### ;#???????? | | ?????????????????????????[ [#???????? | | ?????????????????????????[ [#???????? | | ?????????????????????????# ##???????? | | ?????????????????????????# #????????? | | ????????????????????????? "????????? | | ????????????????????????? "????????? | | ????????????????????????? % ""???????? | | ?????????????????????????"%""????????? | | ?????????????????????????""""????????? | | ??????????????????????????"??????????? | | ?????????????????????????????????????? | | ?????????????????????????????????????? | | ?????????????????????????????????????? | | ?????????????????????????????????????? | | ?????????????????????????????????????? | | ?????????????????????????????????????? | | ?????????????????????????????????????? | | | | | | | | | | | | | +----------------------------------------------------+ Best States ------------- Heat Dissipation 61 Energy Generation 28 Energy Capacity 280 Matter Stores 300 Matter Capacity 300 Sight Range 16 Terrain Scan Range 16 Terrain Scan Density 85 Armor Coverage 300 Evasion (%) 55 Targeting Accuracy 5 Recoil Reduction 3 Particle Charging 20 Item Schematics ----------------- None Robot Schematics ------------------ None Fabricated ------------ Nothing Repaired ---------- Arm. Treads | 1% | -7/Factory Alien Tech Used ----------------- None Achievements -------------- Maybe Next Time I'll Detach My Launcher Challenges ------------ None Game ------ Seed SpliceHoverProtomatter Manual? 0 Play Time 01:05:05 Cumulative 8.0 hours Start 2025.08.28 @ 19:29:21 End 2025.08.30 @ 21:48:53 Sessions 3 Manual Loads 0 Difficulty Rogue Special Mode None Game No. 17 Rogue 17 Adventurer 0 Explorer 0 Win Type - Total 0 Types 0/0/0/0/0/0/0/0/0/0 Lore% 8 Gallery% 12 Achievement% 15 Wizard Run 0 Options --------- Layout 1 ASCII 0 Keyboard 0 Movement Mouse Keybinds 0 Fullscreen 1 Font 24/Smallcaps Map View 76x35 Zoom Use 0% Tactical HUD 1 Map Filters NONE Filters NONE Steam 1 RUN: 7cec3be7-3115-4895-8c6e-48d71750a9ff